[Event "Faroese-ch Open 2025"]
[Site "Torshavn"]
[Date "2025.04.14"]
[Round "3.4"]
[White "Xin, Lisa J."]
[Black "Rasmussen, Gunnleif"]
[Result "1/2-1/2"]
[Annotator "NA RC"]
[ECO "D04"]
[WhiteElo "1562"]
[BlackElo "1489"]
[PlyCount "95"]
[EventDate "2025.04.11"]
[EventType "swiss"]
[EventCountry "FAI"]
[SourceTitle "playchess.com"]
[Source "ChessBase"]
[SourceQuality "1"]
[TimeControl "40/5400+30:900+30"]

1. d4 {[%emt 0:00:04]} d5 {[%emt 0:01:11]} 2. Nf3 {[%emt 0:00:25]} Nf6 {[%emt 0:00:20]} 3. e3 {[%emt 0:00:26]} Bg4 {[%emt 0:00:17]} 4. Be2 {[%emt 0:00:43]} Bxf3 {[%emt 0:00:51]} 5. Bxf3 {[%emt 0:00:36]} e6 {[%emt 0:00:18]} 6. O-O {[%emt 0:00:22]} Be7 {[%emt 0:00:05]} 7. c4 {[%emt 0:00:56]} c6 {[%emt 0:06:32]} 8. cxd5 {[%emt 0:01:57]} cxd5 {[%emt 0:04:34]} 9. Nc3 {[%emt 0:00:24]} O-O {[%emt 0:02:48]} 10. Bd2 {[%emt 0:00:56]} Nbd7 {[%emt 0:10:13]} 11. Rc1 {[%emt 0:02:15]} a6 {[%emt 0:00:23]} 12. Re1 {[%emt 0:02:05]} b5 {[%emt 0:01:12]} 13. e4 {[%emt 0:03:55]} b4 {[%emt 0:03:24]} 14. Na4 {[%emt 0:01:39]} dxe4 {[%emt 0:05:22]} 15. Bxe4 {[%emt 0:00:36]} Nxe4 {[%emt 0:00:40]} 16. Rxe4 {[%emt 0:00:09]} Nf6 {[%emt 0:00:29]} 17. Rf4 {[%emt 0:01:53]} Nd5 {[%emt 0:08:40]} 18. Rf3 {[%emt 0:01:51]} Bg5 {[%emt 0:05:11]} 19. Bxg5 {[%emt 0:01:55]} Qxg5 {[%emt 0:00:53]} 20. Rg3 {[%emt 0:02:22]} Qe7 {[%emt 0:07:18]} 21. Qd2 {[%emt 0:01:36]} Qh4 {[%emt 0:03:06]} 22. Nc5 {[%emt 0:04:43]} Qf4 {[%emt 0:03:24]} 23. Qxf4 {[%emt 0:02:55]} Nxf4 {[%emt 0:01:18]} 24. Re3 {[%emt 0:01:38]} Rfd8 {[%emt 0:03:33]} 25. g3 {[%emt 0:03:34]} Nd5 {[%emt 0:04:41]} 26. Ree1 {[%emt 0:02:21]} a5 {[%emt 0:02:58]} 27. a4 {[%emt 0:07:18]} bxa3 {[%emt 0:02:59]} 28. bxa3 {[%emt 0:01:02]} Rab8 {[%emt 0:02:25]} 29. Rb1 {[%emt 0:02:49]} Nc3 {[%emt 0:01:43]} 30. Rxb8 {[%emt 0:04:16]} Rxb8 {[%emt 0:00:28]} 31. Re3 {[%emt 0:01:04]} Nd5 {[%emt 0:05:46]} 32. Rb3 {[%emt 0:00:54]} Rxb3 {[%emt 0:00:25]} 33. Nxb3 {[%emt 0:00:09]} a4 {[%emt 0:00:35]} 34. Nc5 {[%emt 0:00:28]} Nb6 {[%emt 0:00:26]} 35. Kf1 {[%emt 0:00:16]} Nc4 {[%emt 0:01:31]} 36. Nxa4 {[%emt 0:00:32]} Nxa3 {[%emt 0:00:08]} 37. Ke2 {[%emt 0:00:22]} Nb5 {[%emt 0:01:07]} 38. Kd3 {[%emt 0:00:54]} f5 {[%emt 0:01:12]} 39. Nc3 {[%emt 0:07:58]} Nc7 {[%emt 0:05:56]} 40. Ke3 {[%emt 0:00:00]} Kf7 {[%emt 0:00:00]} 41. Kf4 {[%emt 0:01:38]} Kf6 {[%emt 0:03:21]} 42. h4 {[%emt 0:02:50]} h6 {[%emt 0:00:59]} 43. f3 {[%emt 0:03:58]} g5+ {[%emt 0:03:59]} 44. hxg5+ {[%emt 0:00:14]} hxg5+ {[%emt 0:00:13]} 45. Ke3 {[%emt 0:00:08]} Nd5+ {[%emt 0:06:34]} 46. Nxd5+ {[%emt 0:00:10]} exd5 {[%emt 0:00:07]} 47. g4 {[%emt 0:00:25]} fxg4 {[%emt 0:02:52]} 48. fxg4 {[%emt 0:00:11]} 1/2-1/2

[Event "Faroese-ch Open 2025"]
[Site "Torshavn"]
[Date "2025.04.15"]
[Round "4.1"]
[White "Staksberg, Luca Eydun"]
[Black "Kosini, Bogi a"]
[Result "1/2-1/2"]
[Annotator "NA RC"]
[ECO "D02"]
[WhiteElo "1692"]
[BlackElo "1654"]
[PlyCount "51"]
[EventDate "2025.04.11"]
[EventType "swiss"]
[EventCountry "FAI"]
[SourceTitle "playchess.com"]
[Source "ChessBase"]
[SourceQuality "1"]
[TimeControl "40/5400+30:900+30"]

1. d4 {[%emt 0:00:02]} d5 {[%emt 0:00:08]} 2. Nf3 {[%emt 0:00:16]} Nf6 {[%emt 0:00:23]} 3. Bf4 {[%emt 0:01:10]} Bf5 {[%emt 0:02:03]} 4. e3 {[%emt 0:00:49]} e6 {[%emt 0:01:13]} 5. a3 {[%emt 0:02:07]} Be7 {[%emt 0:02:48]} 6. c4 {[%emt 0:01:48]} O-O {[%emt 0:01:55]} 7. Nc3 {[%emt 0:01:25]} b6 {[%emt 0:09:17]} 8. Rc1 {[%emt 0:04:36]} c5 {[%emt 0:03:13]} 9. h3 {[%emt 0:09:55]} Nc6 {[%emt 0:13:40]} 10. cxd5 {[%emt 0:07:52]} exd5 {[%emt 0:12:51]} 11. Bb5 {[%emt 0:08:24]} Na5 {[%emt 0:06:38]} 12. Be5 {[%emt 0:07:21]} c4 {[%emt 0:03:21]} 13. Ba4 {[%emt 0:03:44]} a6 {[%emt 0:03:53]} 14. Bxf6 {[%emt 0:03:04]} Bxf6 {[%emt 0:00:18]} 15. Bc2 {[%emt 0:00:51]} Bxc2 {[%emt 0:01:08]} 16. Qxc2 {[%emt 0:00:35]} Nb3 {[%emt 0:01:04]} 17. Rd1 {[%emt 0:00:50]} Qd6 {[%emt 0:03:50]} 18. O-O {[%emt 0:03:10]} b5 {[%emt 0:04:29]} 19. Rfe1 {[%emt 0:01:37]} Rfe8 {[%emt 0:03:55]} 20. Nd2 {[%emt 0:05:10]} Nxd2 {[%emt 0:01:39]} 21. Rxd2 {[%emt 0:00:29]} Rad8 {[%emt 0:01:43]} 22. Rde2 {[%emt 0:03:56]} Re6 {[%emt 0:06:41]} 23. Qf5 {[%emt 0:03:44]} g6 {[%emt 0:01:00]} 24. Qc2 {[%emt 0:01:42]} Bg7 {[%emt 0:01:17]} 25. Qd2 {[%emt 0:01:56]} Qb6 {[%emt 0:00:41]} 26. Qd1 {[%emt 0:01:36]} 1/2-1/2

[Event "Faroese-ch Open 2025"]
[Site "Torshavn"]
[Date "2025.04.15"]
[Round "4.2"]
[White "Logv, Hanus a"]
[Black "Morkore, Mortan"]
[Result "1/2-1/2"]
[Annotator "NA RC"]
[ECO "C53"]
[WhiteElo "1656"]
[BlackElo "1681"]
[PlyCount "71"]
[EventDate "2025.04.11"]
[EventType "swiss"]
[EventCountry "FAI"]
[SourceTitle "playchess.com"]
[Source "ChessBase"]
[SourceQuality "1"]
[TimeControl "40/5400+30:900+30"]

1. e4 {[%emt 0:00:02]} e5 {[%emt 0:00:50]} 2. Nf3 {[%emt 0:00:08]} Nc6 {[%emt 0:00:07]} 3. Bc4 {[%emt 0:00:05]} Bc5 {[%emt 0:00:17]} 4. c3 {[%emt 0:00:18]} a6 {[%emt 0:00:06]} 5. O-O {[%emt 0:02:02]} Nf6 {[%emt 0:00:22]} 6. Re1 {[%emt 0:00:37]} d6 {[%emt 0:01:52]} 7. d4 {[%emt 0:01:31]} Ba7 {[%emt 0:09:11]} 8. Bg5 {[%emt 0:02:41]} h6 {[%emt 0:01:57]} 9. Bh4 {[%emt 0:00:19]} g5 {[%emt 0:00:17]} 10. dxe5 {[%emt 0:04:15]} gxh4 {[%emt 0:03:28]} 11. exf6 {[%emt 0:00:30]} Qxf6 {[%emt 0:00:15]} 12. e5 {[%emt 0:02:25]} Nxe5 {[%emt 0:01:31]} 13. Qe2 {[%emt 0:21:27]} Bg4 {[%emt 0:01:43]} 14. Nbd2 {[%emt 0:09:03]} O-O-O {[%emt 0:05:45]} 15. Ne4 {[%emt 0:12:59]} Nxf3+ {[%emt 0:05:59]} 16. gxf3 {[%emt 0:00:38]} Qxf3 {[%emt 0:00:48]} 17. Qxf3 {[%emt 0:03:04]} Bxf3 {[%emt 0:00:31]} 18. Nf6 {[%emt 0:01:49]} d5 {[%emt 0:05:11]} 19. Be2 {[%emt 0:09:52]} Rd6 {[%emt 0:05:59]} 20. Bxf3 {[%emt 0:04:27]} Rxf6 {[%emt 0:00:19]} 21. Bg4+ {[%emt 0:01:09]} Kd8 {[%emt 0:01:07]} 22. Re5 {[%emt 0:04:13]} Rxf2 {[%emt 0:07:03]} 23. Rxd5+ {[%emt 0:00:36]} Ke7 {[%emt 0:00:02]} 24. Re1+ {[%emt 0:02:07]} Re2+ {[%emt 0:01:55]} 25. Kf1 {[%emt 0:00:09]} Rxe1+ {[%emt 0:00:18]} 26. Kxe1 {[%emt 0:00:03]} Rd8 {[%emt 0:02:25]} 27. Rxd8 {[%emt 0:04:17]} Kxd8 {[%emt 0:00:18]} 28. h3 {[%emt 0:00:53]} Ke7 {[%emt 0:00:10]} 29. Bc8 {[%emt 0:01:32]} b6 {[%emt 0:01:08]} 30. Bxa6 {[%emt 0:00:18]} c5 {[%emt 0:02:53]} 31. Ke2 {[%emt 0:00:24]} Kd6 {[%emt 0:00:08]} 32. c4 {[%emt 0:05:01]} Ke5 {[%emt 0:01:06]} 33. Ke3 {[%emt 0:00:13]} f5 {[%emt 0:01:14]} 34. Bb7 {[%emt 0:00:17]} f4+ {[%emt 0:00:45]} 35. Kd3 {[%emt 0:00:48]} Bb8 {[%emt 0:05:21]} 36. Bc6 {[%emt 0:00:28]} 1/2-1/2

[Event "Faroese-ch Open 2025"]
[Site "Torshavn"]
[Date "2025.04.15"]
[Round "4.3"]
[White "Rasmussen, Gunnleif"]
[Black "Simonsen, Johannes"]
[Result "0-1"]
[Annotator "NA RC"]
[ECO "A48"]
[WhiteElo "1489"]
[BlackElo "1608"]
[PlyCount "146"]
[EventDate "2025.04.11"]
[EventType "swiss"]
[EventCountry "FAI"]
[SourceTitle "playchess.com"]
[Source "ChessBase"]
[SourceQuality "1"]
[TimeControl "40/5400+30:900+30"]

1. d4 {[%emt 0:00:30]} Nf6 {[%emt 0:00:10]} 2. Nf3 {[%emt 0:00:11]} d6 {[%emt 0:00:20]} 3. e3 {[%emt 0:01:00]} g6 {[%emt 0:00:09]} 4. Bd3 {[%emt 0:00:21]} Bg7 {[%emt 0:00:12]} 5. c3 {[%emt 0:01:41]} O-O {[%emt 0:00:15]} 6. O-O {[%emt 0:00:19]} Bg4 {[%emt 0:00:06]} 7. Nbd2 {[%emt 0:01:56]} Re8 {[%emt 0:02:08]} 8. h3 {[%emt 0:00:40]} Bxf3 {[%emt 0:00:12]} 9. Qxf3 {[%emt 0:01:26]} Nbd7 {[%emt 0:00:10]} 10. e4 {[%emt 0:13:03]} c6 {[%emt 0:00:38]} 11. Re1 {[%emt 0:01:32]} e5 {[%emt 0:00:36]} 12. d5 {[%emt 0:02:29]} Nc5 {[%emt 0:00:33]} 13. Bc2 {[%emt 0:00:25]} a5 {[%emt 0:00:32]} 14. Nb3 {[%emt 0:03:14]} Nxb3 {[%emt 0:03:02]} 15. axb3 {[%emt 0:04:07]} cxd5 {[%emt 0:00:09]} 16. Bg5 {[%emt 0:00:33]} dxe4 {[%emt 0:00:27]} 17. Bxe4 {[%emt 0:01:00]} d5 {[%emt 0:02:59]} 18. Bxf6 {[%emt 0:05:39]} dxe4 {[%emt 0:03:33]} 19. Qxe4 {[%emt 0:05:47]} Bxf6 {[%emt 0:02:22]} 20. Qxb7 {[%emt 0:01:27]} Qd2 {[%emt 0:03:08]} 21. Qf3 {[%emt 0:01:16]} Bg7 {[%emt 0:02:43]} 22. Re2 {[%emt 0:06:33]} Qd6 {[%emt 0:00:37]} 23. Qe4 {[%emt 0:02:30]} Red8 {[%emt 0:02:12]} 24. Qc2 {[%emt 0:00:22]} Qb6 {[%emt 0:04:52]} 25. c4 {[%emt 0:06:33]} Qc5 {[%emt 0:06:22]} 26. Rd2 {[%emt 0:00:52]} Rd4 {[%emt 0:02:42]} 27. Rxd4 {[%emt 0:04:47]} exd4 {[%emt 0:00:12]} 28. Qd2 {[%emt 0:00:59]} Bf8 {[%emt 0:02:06]} 29. Ra4 {[%emt 0:04:17]} Qe5 {[%emt 0:01:43]} 30. c5 {[%emt 0:11:24]} Bxc5 {[%emt 0:02:59]} 31. Rxa5 {[%emt 0:00:50]} Rxa5 {[%emt 0:00:12]} 32. Qxa5 {[%emt 0:00:10]} d3 {[%emt 0:00:21]} 33. Qd8+ {[%emt 0:00:15]} Kg7 {[%emt 0:00:54]} 34. Qxd3 {[%emt 0:00:11]} Qxb2 {[%emt 0:00:45]} 35. Qf3 {[%emt 0:02:23]} Qf6 {[%emt 0:03:16]} 36. Qe2 {[%emt 0:01:07]} Qa1+ {[%emt 0:01:03]} 37. Kh2 {[%emt 0:00:47]} Bd6+ {[%emt 0:00:48]} 38. g3 {[%emt 0:00:24]} Qe5 {[%emt 0:00:17]} 39. Qc4 {[%emt 0:01:54]} Qc5 {[%emt 0:00:47]} 40. Qe2 {[%emt 0:00:00]} h6 {[%emt 0:00:00]} 41. Qf3 {[%emt 0:07:44]} Be5 {[%emt 0:11:01]} 42. Kg2 {[%emt 0:02:09]} Qc3 {[%emt 0:00:12]} 43. Qb7 {[%emt 0:07:12]} Qb2 {[%emt 0:01:44]} 44. Qf3 {[%emt 0:04:00]} Bd4 {[%emt 0:04:15]} 45. g4 {[%emt 0:02:10]} Bxf2 {[%emt 0:04:31]} 46. Qxf2 {[%emt 0:00:50]} Qxb3 {[%emt 0:00:08]} 47. Qd4+ {[%emt 0:00:16]} Kh7 {[%emt 0:00:13]} 48. h4 {[%emt 0:01:41]} Qc2+ {[%emt 0:03:58]} 49. Kh3 {[%emt 0:02:51]} Qe2 {[%emt 0:01:05]} 50. Qf4 {[%emt 0:00:55]} Qe6 {[%emt 0:00:44]} 51. Kg3 {[%emt 0:00:32]} Kg7 {[%emt 0:01:54]} 52. Qd4+ {[%emt 0:01:03]} Qf6 {[%emt 0:00:47]} 53. Qd2 {[%emt 0:01:00]} Qe5+ {[%emt 0:00:47]} 54. Kh3 {[%emt 0:01:37]} h5 {[%emt 0:02:09]} 55. g5 {[%emt 0:01:17]} Qf5+ {[%emt 0:01:56]} 56. Kh2 {[%emt 0:00:20]} Qg4 {[%emt 0:01:02]} 57. Qc3+ {[%emt 0:00:25]} Kh7 {[%emt 0:00:41]} 58. Qe1 {[%emt 0:01:26]} Qf4+ {[%emt 0:01:54]} 59. Kh3 {[%emt 0:00:34]} Qc4 {[%emt 0:00:29]} 60. Qf2 {[%emt 0:00:21]} Qd5 {[%emt 0:00:46]} 61. Kh2 {[%emt 0:00:51]} Qe5+ {[%emt 0:00:37]} 62. Kh3 {[%emt 0:00:26]} Qf5+ {[%emt 0:06:11]} 63. Qxf5 {[%emt 0:00:27]} gxf5 {[%emt 0:00:17]} 64. Kg3 {[%emt 0:00:07]} Kg6 {[%emt 0:01:11]} 65. Kf3 {[%emt 0:00:39]} f6 {[%emt 0:01:35]} 66. gxf6 {[%emt 0:01:46]} Kxf6 {[%emt 0:00:59]} 67. Kf4 {[%emt 0:00:13]} Ke6 {[%emt 0:02:04]} 68. Kg5 {[%emt 0:00:36]} Ke5 {[%emt 0:00:59]} 69. Kxh5 {[%emt 0:00:18]} f4 {[%emt 0:00:26]} 70. Kg4 {[%emt 0:00:11]} Ke4 {[%emt 0:00:12]} 71. Kh3 {[%emt 0:00:53]} Ke3 {[%emt 0:02:26]} 72. Kg2 {[%emt 0:01:05]} Ke2 {[%emt 0:00:08]} 73. h5 {[%emt 0:00:30]} f3+ {[%emt 0:00:12]} 0-1

[Event "Faroese-ch Open 2025"]
[Site "Torshavn"]
[Date "2025.04.15"]
[Round "4.4"]
[White "Al-Jay, Zaid"]
[Black "Xin, Lisa J."]
[Result "0-1"]
[Annotator "NA RC"]
[ECO "C01"]
[WhiteElo "1689"]
[BlackElo "1562"]
[PlyCount "67"]
[EventDate "2025.04.11"]
[EventType "swiss"]
[EventCountry "FAI"]
[SourceTitle "playchess.com"]
[Source "ChessBase"]
[SourceQuality "1"]
[TimeControl "40/5400+30:900+30"]

1. e4 {[%emt 0:00:56]} e6 {[%emt 0:00:22]} 2. d4 {[%emt 0:01:06]} d5 {[%emt 0:00:38]} 3. Bd3 {[%emt 0:00:13]} Nf6 {[%emt 0:01:42]} 4. e5 {[%emt 0:01:42]} Nfd7 {[%emt 0:00:19]} 5. Ne2 {[%emt 0:00:21]} c5 {[%emt 0:00:29]} 6. c3 {[%emt 0:00:34]} Nc6 {[%emt 0:00:14]} 7. a3 {[%emt 0:00:11]} Be7 {[%emt 0:00:32]} 8. O-O {[%emt 0:09:11]} O-O {[%emt 0:00:50]} 9. Kh1 {[%emt 0:07:10]} cxd4 {[%emt 0:05:04]} 10. cxd4 {[%emt 0:00:21]} b6 {[%emt 0:03:25]} 11. Bxh7+ {[%emt 0:08:14]} Kxh7 {[%emt 0:03:19]} 12. Qc2+ {[%emt 0:00:15]} g6 {[%emt 0:00:34]} 13. Qxc6 {[%emt 0:00:09]} Ba6 {[%emt 0:01:17]} 14. Nbc3 {[%emt 0:01:09]} Rc8 {[%emt 0:07:00]} 15. Qa4 {[%emt 0:00:49]} Bd3 {[%emt 0:09:46]} 16. Qd1 {[%emt 0:04:23]} Bc4 {[%emt 0:05:47]} 17. Qd2 {[%emt 0:06:53]} Rh8 {[%emt 0:01:52]} 18. Qf4 {[%emt 0:03:20]} Kg8 {[%emt 0:02:13]} 19. Be3 {[%emt 0:06:06]} Qf8 {[%emt 0:02:40]} 20. Qf3 {[%emt 0:01:37]} Qg7 {[%emt 0:04:15]} 21. Rfe1 {[%emt 0:03:38]} Qh7 {[%emt 0:02:10]} 22. h3 {[%emt 0:02:48]} Bd3 {[%emt 0:03:56]} 23. Rac1 {[%emt 0:12:18]} Kg7 {[%emt 0:09:10]} 24. Kg1 {[%emt 0:06:15]} Nb8 {[%emt 0:03:52]} 25. Na2 {[%emt 0:03:17]} Nc6 {[%emt 0:03:12]} 26. Nac3 {[%emt 0:07:12]} Na5 {[%emt 0:01:17]} 27. Bf4 {[%emt 0:02:55]} g5 {[%emt 0:02:24]} 28. Be3 {[%emt 0:03:08]} Nb3 {[%emt 0:00:19]} 29. Rcd1 {[%emt 0:03:34]} Bc2 {[%emt 0:00:13]} 30. Qg4 {[%emt 0:02:10]} Bxd1 {[%emt 0:04:39]} 31. Rxd1 {[%emt 0:00:17]} Qh5 {[%emt 0:02:10]} 32. Qg3 {[%emt 0:01:57]} Rcg8 {[%emt 0:02:52]} 33. Rf1 {[%emt 0:02:01]} Kf8 {[%emt 0:00:13]} 34. Nf4 {[%emt 0:00:32]} 0-1

[Event "Faroese-ch Open 2025"]
[Site "Torshavn"]
[Date "2025.04.16"]
[Round "5.1"]
[White "Logv, Hanus a"]
[Black "Staksberg, Luca Eydun"]
[Result "1/2-1/2"]
[Annotator "NA RC"]
[ECO "C01"]
[WhiteElo "1656"]
[BlackElo "1692"]
[PlyCount "42"]
[EventDate "2025.04.11"]
[EventType "swiss"]
[EventCountry "FAI"]
[SourceTitle "playchess.com"]
[Source "ChessBase"]
[SourceQuality "1"]
[TimeControl "40/5400+30:900+30"]

1. e4 {[%emt 0:00:03]} e6 {[%emt 0:00:06]} 2. d4 {[%emt 0:00:03]} d5 {[%emt 0:00:09]} 3. exd5 {[%emt 0:00:05]} exd5 {[%emt 0:00:08]} 4. Nf3 {[%emt 0:00:14]} Nc6 {[%emt 0:03:06]} 5. Nc3 {[%emt 0:02:48]} a6 {[%emt 0:04:06]} 6. Bd3 {[%emt 0:01:44]} Nf6 {[%emt 0:05:22]} 7. h3 {[%emt 0:01:42]} h6 {[%emt 0:01:55]} 8. Bf4 {[%emt 0:05:56]} Bd6 {[%emt 0:04:05]} 9. Bxd6 {[%emt 0:11:47]} Qxd6 {[%emt 0:00:22]} 10. O-O {[%emt 0:00:46]} Be6 {[%emt 0:04:20]} 11. a3 {[%emt 0:02:23]} O-O {[%emt 0:06:56]} 12. Re1 {[%emt 0:01:16]} g6 {[%emt 0:03:33]} 13. Qd2 {[%emt 0:03:20]} Kg7 {[%emt 0:02:13]} 14. Ne2 {[%emt 0:08:16]} Ne4 {[%emt 0:08:46]} 15. Qf4 {[%emt 0:06:45]} g5 {[%emt 0:11:52]} 16. Qxd6 {[%emt 0:14:15]} Nxd6 {[%emt 0:00:47]} 17. Ng3 {[%emt 0:05:14]} Rfe8 {[%emt 0:07:51]} 18. Nh5+ {[%emt 0:03:43]} Kf8 {[%emt 0:02:29]} 19. Nf6 {[%emt 0:01:53]} Red8 {[%emt 0:03:12]} 20. c3 {[%emt 0:05:06]} Kg7 {[%emt 0:05:20]} 21. Nh5+ {[%emt 0:01:32]} Kf8 {[%emt 0:00:03]} 1/2-1/2

[Event "Faroese-ch Open 2025"]
[Site "Torshavn"]
[Date "2025.04.16"]
[Round "5.2"]
[White "Kosini, Bogi a"]
[Black "Xin, Lisa J."]
[Result "1-0"]
[Annotator "NA RC"]
[ECO "C01"]
[WhiteElo "1654"]
[BlackElo "1562"]
[PlyCount "137"]
[EventDate "2025.04.11"]
[EventType "swiss"]
[EventCountry "FAI"]
[SourceTitle "playchess.com"]
[Source "ChessBase"]
[SourceQuality "1"]
[TimeControl "40/5400+30:900+30"]

1. e4 {[%emt 0:00:03]} e6 {[%emt 0:00:15]} 2. Nc3 {[%emt 0:00:09]} d5 {[%emt 0:00:08]} 3. exd5 {[%emt 0:00:07]} exd5 {[%emt 0:00:09]} 4. d4 {[%emt 0:00:09]} Nf6 {[%emt 0:00:04]} 5. Nf3 {[%emt 0:00:32]} Be7 {[%emt 0:00:22]} 6. Be2 {[%emt 0:01:29]} O-O {[%emt 0:00:08]} 7. O-O {[%emt 0:00:12]} Bf5 {[%emt 0:02:32]} 8. h3 {[%emt 0:02:59]} h6 {[%emt 0:01:01]} 9. Bd3 {[%emt 0:00:49]} Bxd3 {[%emt 0:04:22]} 10. Qxd3 {[%emt 0:00:12]} c6 {[%emt 0:02:34]} 11. Ne2 {[%emt 0:02:05]} Bd6 {[%emt 0:02:41]} 12. Bf4 {[%emt 0:03:42]} Bxf4 {[%emt 0:00:56]} 13. Nxf4 {[%emt 0:00:11]} Nbd7 {[%emt 0:01:20]} 14. c3 {[%emt 0:03:08]} Re8 {[%emt 0:01:27]} 15. Rae1 {[%emt 0:01:18]} Ne4 {[%emt 0:02:25]} 16. Nd2 {[%emt 0:13:44]} Nxd2 {[%emt 0:01:02]} 17. Rxe8+ {[%emt 0:00:32]} Qxe8 {[%emt 0:02:40]} 18. Qxd2 {[%emt 0:00:12]} Nf6 {[%emt 0:00:37]} 19. Re1 {[%emt 0:03:26]} Qd7 {[%emt 0:00:15]} 20. Nd3 {[%emt 0:02:37]} Ne4 {[%emt 0:03:40]} 21. Qf4 {[%emt 0:07:08]} Re8 {[%emt 0:07:01]} 22. f3 {[%emt 0:20:53]} Nf6 {[%emt 0:00:50]} 23. Rxe8+ {[%emt 0:06:58]} Qxe8 {[%emt 0:00:15]} 24. Kf2 {[%emt 0:00:39]} b6 {[%emt 0:12:08]} 25. Qc7 {[%emt 0:07:10]} Qa8 {[%emt 0:06:38]} 26. Ne5 {[%emt 0:00:47]} c5 {[%emt 0:04:59]} 27. Qxf7+ {[%emt 0:01:38]} Kh7 {[%emt 0:00:25]} 28. Qg6+ {[%emt 0:02:37]} Kg8 {[%emt 0:00:29]} 29. Nf7 {[%emt 0:00:33]} Kf8 {[%emt 0:03:24]} 30. Nxh6 {[%emt 0:00:31]} Ne4+ {[%emt 0:02:07]} 31. fxe4 {[%emt 0:00:22]} gxh6 {[%emt 0:00:12]} 32. Qxh6+ {[%emt 0:00:23]} Kg8 {[%emt 0:00:30]} 33. Qe6+ {[%emt 0:00:13]} Kh8 {[%emt 0:00:08]} 34. Qxd5 {[%emt 0:00:26]} Qf8+ {[%emt 0:00:15]} 35. Qf5 {[%emt 0:00:50]} Qh6 {[%emt 0:01:16]} 36. Qf3 {[%emt 0:05:17]} cxd4 {[%emt 0:01:32]} 37. Qd3 {[%emt 0:02:43]} Qh4+ {[%emt 0:04:17]} 38. Qg3 {[%emt 0:01:13]} Qxe4 {[%emt 0:03:11]} 39. Qb8+ {[%emt 0:02:19]} Kh7 {[%emt 0:00:15]} 40. Qxa7+ {[%emt 0:00:00]} Kh8 {[%emt 0:00:00]} 41. Qb8+ {[%emt 0:00:38]} Kh7 {[%emt 0:00:27]} 42. Qc7+ {[%emt 0:00:29]} Kg8 {[%emt 0:00:39]} 43. Qd8+ {[%emt 0:01:15]} Kh7 {[%emt 0:00:09]} 44. Qd7+ {[%emt 0:03:29]} Kg8 {[%emt 0:00:16]} 45. Qg4+ {[%emt 0:00:17]} Qxg4 {[%emt 0:00:16]} 46. hxg4 {[%emt 0:00:09]} dxc3 {[%emt 0:00:07]} 47. bxc3 {[%emt 0:00:27]} Kg7 {[%emt 0:00:10]} 48. Ke3 {[%emt 0:00:15]} Kf6 {[%emt 0:00:06]} 49. Kd4 {[%emt 0:00:08]} Ke6 {[%emt 0:00:19]} 50. a4 {[%emt 0:00:19]} Kd6 {[%emt 0:00:08]} 51. g5 {[%emt 0:00:09]} Ke6 {[%emt 0:00:06]} 52. g6 {[%emt 0:00:11]} Kf6 {[%emt 0:00:06]} 53. Kd5 {[%emt 0:00:07]} Kxg6 {[%emt 0:00:06]} 54. Kc6 {[%emt 0:00:08]} Kf5 {[%emt 0:00:04]} 55. Kxb6 {[%emt 0:00:10]} Ke4 {[%emt 0:00:07]} 56. a5 {[%emt 0:00:06]} Kd3 {[%emt 0:00:06]} 57. a6 {[%emt 0:00:07]} Kxc3 {[%emt 0:00:04]} 58. a7 {[%emt 0:00:08]} Kd4 {[%emt 0:00:05]} 59. a8=Q {[%emt 0:00:09]} Ke5 {[%emt 0:00:08]} 60. Qf8 {[%emt 0:01:00]} Ke4 {[%emt 0:00:31]} 61. Qf6 {[%emt 0:00:16]} Kd5 {[%emt 0:00:08]} 62. Qe7 {[%emt 0:00:35]} Kc4 {[%emt 0:00:06]} 63. Qd6 {[%emt 0:00:11]} Kb3 {[%emt 0:00:08]} 64. Qc5 {[%emt 0:00:05]} Ka2 {[%emt 0:00:05]} 65. Qb4 {[%emt 0:00:13]} Ka1 {[%emt 0:00:04]} 66. Kc5 {[%emt 0:00:13]} Ka2 {[%emt 0:00:05]} 67. Kc4 {[%emt 0:00:10]} Ka1 {[%emt 0:00:11]} 68. Kc3 {[%emt 0:00:10]} Ka2 {[%emt 0:00:03]} 69. Qb2# {[%emt 0:00:09]} 1-0

[Event "Faroese-ch Open 2025"]
[Site "Torshavn"]
[Date "2025.04.16"]
[Round "5.3"]
[White "Morkore, Mortan"]
[Black "Simonsen, Johannes"]
[Result "1-0"]
[Annotator "NA RC"]
[ECO "B10"]
[WhiteElo "1681"]
[BlackElo "1608"]
[PlyCount "63"]
[EventDate "2025.04.11"]
[EventType "swiss"]
[EventCountry "FAI"]
[SourceTitle "playchess.com"]
[Source "ChessBase"]
[SourceQuality "1"]
[TimeControl "40/5400+30:900+30"]

1. e4 {[%emt 0:00:52]} c6 {[%emt 0:00:27]} 2. Nf3 {[%emt 0:01:03]} d5 {[%emt 0:00:08]} 3. d3 {[%emt 0:00:01]} Bg4 {[%emt 0:00:21]} 4. Be2 {[%emt 0:00:51]} e6 {[%emt 0:00:14]} 5. Ne5 {[%emt 0:02:58]} Bxe2 {[%emt 0:00:20]} 6. Qxe2 {[%emt 0:00:01]} dxe4 {[%emt 0:00:32]} 7. dxe4 {[%emt 0:01:12]} Qa5+ {[%emt 0:00:30]} 8. Nc3 {[%emt 0:03:28]} Qxe5 {[%emt 0:00:11]} 9. O-O {[%emt 0:00:02]} Nf6 {[%emt 0:00:15]} 10. Rd1 {[%emt 0:02:35]} Be7 {[%emt 0:05:09]} 11. f4 {[%emt 0:02:53]} Qc7 {[%emt 0:00:51]} 12. e5 {[%emt 0:01:13]} Nd5 {[%emt 0:00:17]} 13. Ne4 {[%emt 0:01:00]} Nd7 {[%emt 0:00:33]} 14. c4 {[%emt 0:01:30]} N5b6 {[%emt 0:04:44]} 15. Nd6+ {[%emt 0:07:19]} Bxd6 {[%emt 0:01:30]} 16. exd6 {[%emt 0:02:51]} Qd8 {[%emt 0:00:11]} 17. b4 {[%emt 0:01:18]} O-O {[%emt 0:00:45]} 18. a4 {[%emt 0:11:11]} Qf6 {[%emt 0:00:42]} 19. Ra3 {[%emt 0:00:11]} Rad8 {[%emt 0:00:18]} 20. a5 {[%emt 0:00:30]} Nc8 {[%emt 0:00:10]} 21. Rg3 {[%emt 0:05:01]} e5 {[%emt 0:04:42]} 22. c5 {[%emt 0:05:36]} Qxf4 {[%emt 0:00:48]} 23. Bxf4 {[%emt 0:00:46]} exf4 {[%emt 0:00:17]} 24. Rf3 {[%emt 0:03:34]} g5 {[%emt 0:04:36]} 25. Rh3 {[%emt 0:02:35]} f6 {[%emt 0:02:25]} 26. Qe6+ {[%emt 0:01:01]} Kg7 {[%emt 0:00:43]} 27. Qf5 {[%emt 0:02:30]} h6 {[%emt 0:01:13]} 28. Re1 {[%emt 0:00:22]} Ne5 {[%emt 0:01:17]} 29. Rxe5 {[%emt 0:02:45]} fxe5 {[%emt 0:00:10]} 30. Qxe5+ {[%emt 0:00:02]} Kh7 {[%emt 0:00:58]} 31. Qxg5 {[%emt 0:01:11]} Rfe8 {[%emt 0:03:27]} 32. Rxh6# {[%emt 0:00:03]} 1-0